Cogmind - Beta 17.1 @@@ ROGUE MODE // 2026.08.20 @ 13:51:53 Player: McSaucyNugget Result: Destroyed by D-53 Grenadier with Mini Grenade Launcher Performance ------------- Evolutions (0) 0 Regions Visited (2) 400 Robots Destroyed (31) 155 Value Destroyed (460) 460 Prototype IDs (1) 20 Alien Tech Used (0) 0 Bonus (5000) 5000 TOTAL SCORE: 6035 Bonus ------- Prayed to X0-1V1 5000 Cogmind --------- Core Integrity 0/250 Matter 262/300 Energy 99/100 System Corruption 0% Temperature Cool (0) Movement Core (50) Location -10/Mines Parts ------- > --- POWER (1) -------- (None) > --- PROPULSION (2) --- (None) > --- UTILITY (2) ------ (None) > --- WEAPON (3) ------- (None) > --- INVENTORY (5) ---- Light Ion Engine Light Treads Wheel Light Armor Plating Assault Rifle Peak State ------------ > --- POWER ------------ Light Ion Engine > --- PROPULSION ------- Light Treads Light Treads > --- UTILITY ---------- High-capacity Storage Unit X0-1V1's Piety Tracker > --- WEAPON ----------- Autogun Autogun > --- INVENTORY -------- Light Ion Engine Light Treads Light Treads Light Treads Wheel Compact Wheel Compact Wheel Compact Wheel Light Armor Plating Light Armor Plating Light Armor Plating Light Armor Plating Light Armor Plating Hacking Suite Assault Rifle Light Assault Rifle Autogun Autogun Light Cannon Light Cannon [Rating: 23] Favorites ----------- Power Light Ion Engine Engine Light Ion Engine Propulsion Light Treads Treads Light Treads Utility High-capacity Storage Unit Device X0-1V1's Piety Tracker Storage High-capacity Storage Unit Processor Targeting Computer Weapon Autogun Ballistic Gun Autogun Build | -11 -10 -10 ------- Run | Yrd Mat Min Slots Evolved . | . . . Power . | . . . Propulsion . | . . . Utility . | . . . Weapon . | . . . Parts Attached 12 | 5 6 1 Power 1 | . 1 . Engine 1 | . 1 . Core . | . . . Reactor . | . . . Propulsion 2 | 2 . . Treads 2 | 2 . . Leg . | . . . Wheel . | . . . Hover . | . . . Flight . | . . . Utility 5 | 1 4 . Device 1 | . 1 . Storage 3 | 1 2 . Processor 1 | . 1 . Hackware . | . . . Protection . | . . . Artifact . | . . . Weapon 4 | 2 1 1 Energy Gun . | . . . Energy Cannon . | . . . Ballistic Gun 4 | 2 1 1 Ballistic Cannon . | . . . Launcher . | . . . Special Weapon . | . . . Impact Weapon . | . . . Slashing Weapon . | . . . Piercing Weapon . | . . . Special Melee Weapon . | . . . Unidentified Prototypes 1 | . 1 . Parts Lost 1 | . . 1 Power . | . . . Propulsion . | . . . Utility . | . . . Weapon 1 | . . 1 Highest Loss Streak 1 | . . 1 To Critical Strikes . | . . . Average Backups 13 | 2 12 20 Power 1 | . 1 1 Propulsion 4 | 1 3 7 Utility 2 | . 2 6 Weapon 5 | . 5 6 Tool/Special . | . . . Unused Backups 21 | . 2 19 Power 2 | . 1 1 Propulsion 8 | . 1 7 Utility 6 | . . 6 Weapon 5 | . . 5 Tool/Special . | . . . Average Slot Usage (%) 94 | . 92 100 Engine 10 | . 9 14 Treads 28 | . 28 28 Device 4 | . . 14 Storage 14 | . 14 14 Processor 8 | . 11 . Ballistic Gun 28 | . 28 28 Peak Build Rating 23 | 5 22 23 Average Rating 12 | 3 9 22 On Entrance 9 | . 5 22 Avg Prop Armor Cover (%) . | . . . Naked Turns 1 | . . 1 Heaviest Build 50 | 8 49 50 Greatest Support 40 | 40 40 40 Greatest Overweight (x) 1 | . 1 1 Average Overweight (x) . | . . . Largest Inventory Capacity 20 | 8 20 20 Average Capacity 17 | 6 17 19 Most Carried 20 | 5 20 20 Average Carried 13 | 2 12 19 Final Capacity 20 | 8 20 5 Final Carried 20 | 5 20 5 Class Distribution -------------------- 100% | Mutant Dominant Class ---------------- Mutant | -10/Materials Mutant | -10/Mines Resources | -11 -10 -10 ----------- Run | Yrd Mat Min Matter Collected 751 | 220 454 77 Remotely . | . . . Salvage Created 836 | . 745 91 Parts 68 | . 54 14 Haulers Intercepted 1 | . 1 . Recyclers Shooed 2 | . 1 1 Parts Field Recycled . | . . . Retrieved Matter . | . . . Parts Self-Destructed . | . . . Prevented . | . . . Parts Restored . | . . . Kills | -11 -10 -10 ------- Run | Yrd Mat Min Combat Hostiles Destroyed 20 | . 17 3 Guns 20 | . 17 3 Classes Destroyed 9 | . 8 1 Worker 3 | . 2 1 Builder 1 | . 1 . Tunneler 2 | . . 2 Hauler 1 | . 1 . Recycler 2 | . 2 . Operator 1 | . 1 . Watcher 1 | . 1 . Swarmer 12 | . 9 3 Grunt 8 | . 8 . Best Kill Streak 4 | . 4 3 Combat Bots Only 4 | . 4 3 Max Kills in Single Turn 2 | . 2 2 Gunslinging 1 | . 1 . Exploded . | . . . Melee . | . . . Uniques/NPCs Destroyed . | . . . Combat | -11 -10 -10 -------- Run | Yrd Mat Min Hostile Shots Fired 71 | . 56 15 Missed 17 | . 13 4 Hits 54 | . 43 11 Projectile 54 | . 43 11 AOE 9 | . . 9 Damage Taken 828 | . 390 438 Core 267 | . 83 184 Absorbed by Shields . | . . . Core Remaining (%) 100 | 100 . . Volleys Fired 67 | . 52 15 Largest 2 | . 2 2 Hottest 46 | . 43 46 Shots Fired 133 | . 104 29 Gun 133 | . 104 29 Cannon . | . . . Launcher . | . . . Special . | . . . Kinetic 133 | . 104 29 Thermal . | . . . Explosive . | . . . Electromagnetic . | . . . Robot Hit Streak 13 | . 13 5 Robot Miss Streak 4 | . 4 3 Penetration Max . | . . . Secondary Targets 3 | . 3 . Max Gunslinging Chain 1 | . 1 . Shots Hit Robots 74 | . 63 11 Core Hits 34 | . 28 6 Critical Kills . | . . . Critical Parts Destroyed 1 | . 1 . Critical Strikes 1 | . 1 . Destroy 1 | . 1 . Melee Attacks . | . . . Impact . | . . . Slashing . | . . . Piercing . | . . . Sneak Attacks . | . . . Combat Hostiles . | . . . Follow-up Attacks . | . . . Damage Inflicted 1087 | . 897 190 Guns 1087 | . 897 190 Cannons . | . . . Explosions . | . . . Melee . | . . . Ramming . | . . . Kinetic 1087 | . 897 190 Thermal . | . . . Explosive . | . . . Electromagnetic . | . . . Impact . | . . . Slashing . | . . . Piercing . | . . . Highest Corruption . | . . . Average Corruption . | . . . Corruption Purged . | . . . Corruption Blocked . | . . . Overload Shots . | . . . Overflow Damage . | . . . Projectiles . | . . . Explosions . | . . . Melee . | . . . Knockbacks . | . . . Impact . | . . . Kinetic . | . . . Secondary . | . . . Self-Inflicted Damage . | . . . Shots . | . . . Rammed . | . . . Targets Rammed . | . . . Kicked . | . . . Crushed . | . . . Highest Temperature 16 | . 16 12 Average Temperature 3 | . 3 3 Received Heat Transfer 78 | . 78 . Siege Activations . | . . . Martial Activations . | . . . Shielding Activations . | . . . Robots Disrupted . | . . . Combat Hostiles . | . . . Robots Corrupted . | . . . Combat Hostiles . | . . . Parts Fried . | . . . Impact Corruptions . | . . . Robots Melted . | . . . Combat Hostiles . | . . . Parts Melted . | . . . Heat Transferred . | . . . Parts Sabotaged . | . . . Parts Stolen . | . . . Parts Stripped . | . . . Power Chain Reactions . | . . . Alert | -11 -10 -10 ------- Run | Yrd Mat Min Maximum Alert Level 1 | . 1 . Low Security (%) 83 | 100 77 100 Level 1 16 | . 22 . Level 2 . | . . . Level 3 . | . . . Level 4 . | . . . Level 5 . | . . . High Security . | . . . Max Security . | . . . Peak Influence 234 | . 234 131 Initial 61 | . . 61 Average 121 | . 151 59 Influence Increases 631 | . 546 85 Destroy 0b10 Robot/C 400 | . 340 60 Destroy 0b10 Robot/NC 55 | . 40 15 Destroy Leader 84 | . 74 10 Successful Hack 14 | . 14 . Destroy Structure 3 | . 3 . Lose Combat Pursuer 75 | . 75 . Influence Decreases 631 | . 388 243 Entered New Map 97 | . . 97 Time Decay 534 | . 388 146 Squads Dispatched 4 | . 4 . Investigation 3 | . 3 . Extermination . | . . . Reinforcement 1 | . 1 . Assault . | . . . Garrison . | . . . Intercept . | . . . Searches Triggered . | . . . Construction Impeded . | . . . Haulers Reinforced . | . . . Active Scanning Responses . | . . . Cargo Convoy Interrupts . | . . . Stealth | -11 -10 -10 --------- Run | Yrd Mat Min Distress Signals 1 | . 1 . Communications Jammed . | . . . Distress Signals . | . . . Times Spotted 32 | . 27 5 Peak Tracking Total 4 | . 4 3 Tactical Retreats 3 | . 3 . Traps | -11 -10 -10 ------- Run | Yrd Mat Min Traps Triggered 3 | . 3 . Indirectly . | . . . Trap Hack Attempts . | . . . Triggered . | . . . Disarmed . | . . . Reprogrammed . | . . . Reused . | . . . Traps Extracted . | . . . Installed . | . . . Triggered . | . . . Machines | -11 -10 -10 ---------- Run | Yrd Mat Min Machines Disabled 1 | . 1 . Max in Single Turn 1 | . 1 . Machines Repaired . | . . . Machines Dismantled . | . . . Machines Sabotaged . | . . . Overloaded Fab Kills . | . . . Hacking | -11 -10 -10 --------- Run | Yrd Mat Min Machines Accessed 2 | . 2 . Terminals 2 | . 2 . Fabricators . | . . . Repair Stations . | . . . Recycling Units . | . . . Scanalyzers . | . . . Garrison Access . | . . . Total Hacks 4 | . 4 . Successful 2 | . 2 . Failed 2 | . 2 . Catastrophic . | . . . Database Lockouts . | . . . Manual 1 | . 1 . Terminals 4 | . 4 . Fabricators . | . . . Repair Stations . | . . . Recycling Units . | . . . Scanalyzers . | . . . Garrison Access . | . . . Terminal Hacks 2 | . 2 . Branch Access Points 1 | . 1 . Terminal Index 1 | . 1 . Fabricator Hacks . | . . . Repair Station Hacks . | . . . Recycling Unit Hacks . | . . . Scanalyzer . | . . . Garrison Access Hacks . | . . . Unauthorized Hacks . | . . . Terminals . | . . . Fabricators . | . . . Repair Stations . | . . . Recycling Units . | . . . Scanalyzers . | . . . Garrison Access . | . . . Data Cores Recovered . | . . . Used . | . . . Hacking Detections 2 | . 2 . Full Trace Events . | . . . Feedback Events . | . . . Feedback Blocked . | . . . Robot Schematics Acquired . | . . . Robots Built . | . . . Authchips . | . . . Time . | . . . Total Robot Build Rating . | . . . Part Schematics Acquired . | . . . Parts Built . | . . . Authchips . | . . . Time . | . . . Total Part Build Rating . | . . . Part Studies Acquired . | . . . Parts Repaired . | . . . Time . | . . . Parts Recycled . | . . . Recycled Matter . | . . . Retrieved Matter . | . . . Retrieved Components . | . . . Parts Scanalyzed . | . . . Part Schematics Acquired . | . . . Parts Damaged . | . . . Bothacking | -11 -10 -10 ------------ Run | Yrd Mat Min Used RIF Installer . | . . . Robots Hacked . | . . . Non-combat . | . . . Combat . | . . . Robot Hacks Applied . | . . . Relay Couplers Released . | . . . Fabnet Peak Effective % . | . . . Robots Rewired . | . . . Allies Hacked . | . . . Hacks Repelled . | . . . Allies | -11 -10 -10 -------- Run | Yrd Mat Min Total Allies 2 | . . 2 Largest Group 2 | . . 2 Highest-Rated Group 43 | . . 43 Highest-Rated Ally 31 | . . 31 Total Orders . | . . . Ally Attacks 2 | . . 2 Total Damage 22 | . . 22 Kills . | . . . Allies Corrupted . | . . . Allies Melted . | . . . X0-1V1 Amusement Gains 81 | . 11 70 Average Entertainment 6 | . 11 6 Good Acts 1 | . . 1 Bad Acts 1 | . 1 . Intel | -11 -10 -10 ------- Run | Yrd Mat Min Active Infowar (turns) . | . . . Robot Analysis Total . | . . . Derelict Logs Recovered . | . . . Drone Launches . | . . . Drone Recoveries . | . . . Exploration | -11 -10 -10 ------------- Run | Yrd Mat Min Turns Passed 1478 | 79 1054 345 Spaces Moved 585 | 45 411 129 Core 7 | 4 . 3 Treads 578 | 41 411 126 Legs . | . . . Wheels . | . . . Hover . | . . . Flight . | . . . Fastest Speed 50 | 50 160 50 Average Speed 213 | 150 212 235 Slowest Speed 240 | 160 240 240 Overloaded Moves . | . . . Propulsion Burnouts . | . . . Robots Hopped . | . . . Potential Cave-ins . | . . . Cave-ins Triggered . | . . . Exploration Rate (%) 44 | 3 88 43 Regions Visited 2 Branch Regions 1 Pre-discovered Areas . | . . . Known Exits Taken 1 | . 1 . Unknown Exits Taken 1 | 1 . . Scrap Searched . | . . . Spaces Dug . | . . . Terrain Destroyed . | . . . Melee . | . . . Projectile . | . . . AOE . | . . . Terrain Rammed . | . . . Walls Destroyed . | . . . Machines Disabled . | . . . Actions | -11 -10 -10 --------- Run | Yrd Mat Min Total 698 | 54 499 145 Wait 5 | . 5 . Move 583 | 44 410 129 Hop . | . . . Pick Up 23 | 5 18 . Fast Attach 10 | 5 5 . Attach . | . . . Detach 2 | . 2 . Swap 2 | . 1 1 Drop 6 | . 6 . Fire 67 | . 52 15 Melee . | . . . Ram . | . . . Kick . | . . . Crush . | . . . Escape Stasis . | . . . Rewire . | . . . Trap . | . . . Miscellaneous . | . . . Route ------- -11/Scrapyard -10/Materials (discovered 6 exits: [*Mat x3] / *Min x2 / [*Sub]) -10/Mines (discovered 1 exit: [*Mat]) History --------- Turn | Location | Event 27 | -11/Scrapyard | Discovered new exit (range 16) 80 | -11/Scrapyard | Entered Materials 231 | -10/Materials | Discovered new exit (range 11) 285 | -10/Materials | Identified exit to Mines 305 | -10/Materials | Build established: Mutant 462 | -10/Materials | Discovered new exit (range 15) 773 | -10/Materials | Discovered new exit (range 13) 1059 | -10/Materials | Discovered new exit (range 7) 1073 | -10/Materials | Prayed at D.C.S.S. Altar Unit 1134 | -10/Materials | Entered Mines 1467 | -10/Mines | Assembled infested the area 1471 | -10/Mines | Discovered new exit (range 12) 1472 | -10/Mines | Assisted by a Guerilla fighting off Assembled 1473 | -10/Mines | Core integrity fell below 50% 1478 | -10/Mines | Released all parts (6) 1478 | -10/Mines | Weapon slot count temporarily expanded by X0-1V1 (+1) 1479 | -10/Mines | Destroyed by D-53 Grenadier with Mini Grenade Launcher Last Messages --------------- 01467_ X0-1V1 is amused. 01471_ EXIT=FOUND 01471_ ZH-Z2J(h): "I'll hold them off! Go on ahead or try to find another way!" 01472_ A derelict emerges from the shadows: "You need to get out of here! I've been tracking a group of Assembled to figure out where they're coming from, and they're closing on this area, come on!" 01472_ ZH-Z2J(h) destroyed. 01474_ Autogun destroyed. 01474_ T-07 Excavator destroyed. 01474_ 6Q-Q3Y(g) destroyed. 01476_ The unstable cave ceiling collapses. 01478_ Released X0-1V1's Piety Tracker. 01478_ Released Hcp. Storage Unit. 01478_ Released Lgt. Treads. 01478_ Released Lgt. Ion Engine. 01478_ Released Autogun. 01478_ U-05 Engineer lays Concrete. 01478_ X0-1V1: "Weapons, camera, action!" (+1 weapon slot) 01479_ X0-1V1 chortles! Map ----- +----------------------------------------------------+ | ??????????????????????????????# ##??????????????? | | ??????????????????????????????# ##?????????????? | | ??????????????????????????????# #?????????????? | | ??????????????????????????????# ##????????????? | | ??????????????????????????????# ##???????????? | | ??????????????????????????????## ##??????????? | | ???????????????????????????????### ##?????????? | | ?????????????????????????????????## ####??????? | | ??????????????????????????????????## ##?????? | | ??????????????????????????????????## #?????? | | ??????????????????????????????????# #?????? | | ??????????????????????????????????# #?????? | | ??????????????????????????????????## #???##? | | ???????????????????????????????????### #### ## | | ?????????????????????????????????????## ## # | | ??????????????????????????????????????# # | | ??????????????????????????????????????# ! ! ## | | ??????????????????????????????????# ### | #? | | ??????????????????????????????????# #? | | ????????????????????????????????### #? | | ??????????????????????????????? ######## #? | | ???????????????#???##########? < #?????## ##? | | ???????????????# ?## # # #??????## #?? | | ???????????????# # % #???????## #?? | | ???????????????# * d #?????????## #?? | | ?????????????### [=! @ d #???????????## #?? | | ?????????????# =# =[==] ##??????????## #?? | | ????????????# |% =!!= ###??????????## ##? | | ????????????# *= =![ ] #?????????#### ## | | ????????????# [=!] ##????????## # | | ????????? ## ##????????## # | | ????????# #??####z u###????????# # | | ????????? ???????# ##??????## ## ## | | ????????? ??????????## ##?????# #### ##? | | ??????????????????????## ####### ##?#####?? | | ???????????????????????## #######?? | | ???????????????????????## #?? | | ??????????????########## ##### #? | | ??????????????# ^ ## #??# ##? | | ??????????????# # # # #??# ######?? | | ??????????????# # # ####??## ##??????? | | ??????????????# ^# ^ ##??????#######???????? | | ??????????????# ## ##?????????????????????? | | ??????????????# #??????????????????????? | | ??????????????###### ##??????????????????????? | | ???????????????????## ##???????????????????????? | | ????????????????????#####????????????????????????? | | ?????????????????????????????????????????????????? | | | | | +----------------------------------------------------+ Best States ------------- Heat Dissipation 25 Energy Generation 10 Energy Capacity 125 Matter Stores 300 Matter Capacity 300 Sight Range 16 Terrain Scan Density 10 Evasion (%) 40 Targeting Accuracy 5 Recoil Reduction 2 Item Schematics ----------------- None Robot Schematics ------------------ None Fabricated ------------ Nothing Repaired ---------- Nothing Studied --------- None Alien Tech Used ----------------- None Achievements -------------- None Challenges ------------ None Game ------ Seed DataImprinterLoader Manual? 0 Play Time 00:07:31 Cumulative 354.8 hours Start 2026.08.18 @ 14:58:42 End 2026.08.20 @ 13:51:53 Sessions 4 Manual Loads 0 Difficulty Rogue Special Mode None Game No. 140 Rogue 140 Adventurer 0 Explorer 0 Win Type - Total 36 Types 11/5/7/2/1/1/3/2/2/2 Lore% 83 Gallery% 79 Achievement% 74 Wizard Run 0 Options --------- Layout 0 ASCII 0 Keyboard 1 Movement Vi Keybinds 0 Fullscreen 2 Font 24/Smallcaps Map View 76x50 Zoom Use 0% Tactical HUD 1 Map Filters NONE Filters NONE Steam 1 RUN: 52a3bb64-bebd-4d88-be44-47079a00e8f9